{"text_format":"1","workbook":"xlsx","n_sheets":3,"sheets":["INVENTARIO","ENTRADAS Y SALIDAS","CONSULTA ARTICULOS"],"not_rendered":{"charts":0,"images":1,"macros":1,"external_links":0,"defined_names":0,"comments":0,"pivot_tables":0},"unopened":[],"bounds":{"document_bytes":16777216,"sheet_cells":100000,"rows_first":2000,"rows_last":500,"rows_between":2000,"halvings":0,"cell_chars":16384,"cell_head_chars":4096},"cells_cut":0,"cells_raw":0,"read":"whole","date_system":"1900"}

{"sheet":"INVENTARIO","index":0,"n_rows":30,"n_cols":10,"rows_kept":30,"cut":false,"hidden":false,"merged":[[4,0,5,9],[1,2,2,4],[29,1,29,8]]}
[]
[null,null,"LOGO Y DATOS DE LA EMPRESA"]
[]
[]
["INVENTARIO"]
[]
["CODIGO","CATEGORÍA","SUBCATEGORÍA","ARTÍCULO","STOCK","ENTRADAS","SALIDAS","PRECIO COMPRA","PRECIO VENTA","TOTAL"]
[18,"JUGUETERIA","NIÑA","MUÑECA BARBIE",{"$f":"+INVENTARIO[[#This Row],[ENTRADAS]]-INVENTARIO[[#This Row],[SALIDAS]]","v":41},{"$f":"SUMIF(ENTRADAS[CODIGO],INVENTARIO[[#This Row],[CODIGO]],ENTRADAS[CANTIDAD])","v":50},{"$f":"SUMIF(SALIDAS[CODIGO],INVENTARIO[[#This Row],[CODIGO]],SALIDAS[CANTIDAD])","v":9},2000,{"$f":"INVENTARIO[[#This Row],[PRECIO COMPRA]]*2","v":4000},{"$f":"INVENTARIO[[#This Row],[STOCK]]*INVENTARIO[[#This Row],[PRECIO COMPRA]]","v":82000}]
[17,"JUGUETERIA","NIÑA","COCHE DE BEBÉ",{"$f":"+INVENTARIO[[#This Row],[ENTRADAS]]-INVENTARIO[[#This Row],[SALIDAS]]","v":50},{"$f":"SUMIF(ENTRADAS[CODIGO],INVENTARIO[[#This Row],[CODIGO]],ENTRADAS[CANTIDAD])","v":50},{"$f":"SUMIF(SALIDAS[CODIGO],INVENTARIO[[#This Row],[CODIGO]],SALIDAS[CANTIDAD])","v":0},4000,{"$f":"INVENTARIO[[#This Row],[PRECIO COMPRA]]*2","v":8000},{"$f":"INVENTARIO[[#This Row],[STOCK]]*INVENTARIO[[#This Row],[PRECIO COMPRA]]","v":200000}]
[16,"JUGUETERIA","NIÑA","KIT DE COCINA",{"$f":"+INVENTARIO[[#This Row],[ENTRADAS]]-INVENTARIO[[#This Row],[SALIDAS]]","v":42},{"$f":"SUMIF(ENTRADAS[CODIGO],INVENTARIO[[#This Row],[CODIGO]],ENTRADAS[CANTIDAD])","v":50},{"$f":"SUMIF(SALIDAS[CODIGO],INVENTARIO[[#This Row],[CODIGO]],SALIDAS[CANTIDAD])","v":8},6000,{"$f":"INVENTARIO[[#This Row],[PRECIO COMPRA]]*2","v":12000},{"$f":"INVENTARIO[[#This Row],[STOCK]]*INVENTARIO[[#This Row],[PRECIO COMPRA]]","v":252000}]
[15,"JUGUETERIA","NIÑO","CARRO A CONTROL",{"$f":"+INVENTARIO[[#This Row],[ENTRADAS]]-INVENTARIO[[#This Row],[SALIDAS]]","v":50},{"$f":"SUMIF(ENTRADAS[CODIGO],INVENTARIO[[#This Row],[CODIGO]],ENTRADAS[CANTIDAD])","v":50},{"$f":"SUMIF(SALIDAS[CODIGO],INVENTARIO[[#This Row],[CODIGO]],SALIDAS[CANTIDAD])","v":0},8000,{"$f":"INVENTARIO[[#This Row],[PRECIO COMPRA]]*2","v":16000},{"$f":"INVENTARIO[[#This Row],[STOCK]]*INVENTARIO[[#This Row],[PRECIO COMPRA]]","v":400000}]
[14,"JUGUETERIA","NIÑO","PISTA DE CARROS",{"$f":"+INVENTARIO[[#This Row],[ENTRADAS]]-INVENTARIO[[#This Row],[SALIDAS]]","v":43},{"$f":"SUMIF(ENTRADAS[CODIGO],INVENTARIO[[#This Row],[CODIGO]],ENTRADAS[CANTIDAD])","v":50},{"$f":"SUMIF(SALIDAS[CODIGO],INVENTARIO[[#This Row],[CODIGO]],SALIDAS[CANTIDAD])","v":7},10000,{"$f":"INVENTARIO[[#This Row],[PRECIO COMPRA]]*2","v":20000},{"$f":"INVENTARIO[[#This Row],[STOCK]]*INVENTARIO[[#This Row],[PRECIO COMPRA]]","v":430000}]
[13,"JUGUETERIA","NIÑO","LEGO",{"$f":"+INVENTARIO[[#This Row],[ENTRADAS]]-INVENTARIO[[#This Row],[SALIDAS]]","v":50},{"$f":"SUMIF(ENTRADAS[CODIGO],INVENTARIO[[#This Row],[CODIGO]],ENTRADAS[CANTIDAD])","v":50},{"$f":"SUMIF(SALIDAS[CODIGO],INVENTARIO[[#This Row],[CODIGO]],SALIDAS[CANTIDAD])","v":0},12000,{"$f":"INVENTARIO[[#This Row],[PRECIO COMPRA]]*2","v":24000},{"$f":"INVENTARIO[[#This Row],[STOCK]]*INVENTARIO[[#This Row],[PRECIO COMPRA]]","v":600000}]
[12,"ROPA","DAMA","BLUSA ALGODÓN",{"$f":"+INVENTARIO[[#This Row],[ENTRADAS]]-INVENTARIO[[#This Row],[SALIDAS]]","v":47},{"$f":"SUMIF(ENTRADAS[CODIGO],INVENTARIO[[#This Row],[CODIGO]],ENTRADAS[CANTIDAD])","v":50},{"$f":"SUMIF(SALIDAS[CODIGO],INVENTARIO[[#This Row],[CODIGO]],SALIDAS[CANTIDAD])","v":3},14000,{"$f":"INVENTARIO[[#This Row],[PRECIO COMPRA]]*2","v":28000},{"$f":"INVENTARIO[[#This Row],[STOCK]]*INVENTARIO[[#This Row],[PRECIO COMPRA]]","v":658000}]
[11,"ROPA","DAMA","SWEATER DE LANA",{"$f":"+INVENTARIO[[#This Row],[ENTRADAS]]-INVENTARIO[[#This Row],[SALIDAS]]","v":50},{"$f":"SUMIF(ENTRADAS[CODIGO],INVENTARIO[[#This Row],[CODIGO]],ENTRADAS[CANTIDAD])","v":50},{"$f":"SUMIF(SALIDAS[CODIGO],INVENTARIO[[#This Row],[CODIGO]],SALIDAS[CANTIDAD])","v":0},16000,{"$f":"INVENTARIO[[#This Row],[PRECIO COMPRA]]*2","v":32000},{"$f":"INVENTARIO[[#This Row],[STOCK]]*INVENTARIO[[#This Row],[PRECIO COMPRA]]","v":800000}]
[10,"ROPA","DAMA","ZAPATOS",{"$f":"+INVENTARIO[[#This Row],[ENTRADAS]]-INVENTARIO[[#This Row],[SALIDAS]]","v":49},{"$f":"SUMIF(ENTRADAS[CODIGO],INVENTARIO[[#This Row],[CODIGO]],ENTRADAS[CANTIDAD])","v":50},{"$f":"SUMIF(SALIDAS[CODIGO],INVENTARIO[[#This Row],[CODIGO]],SALIDAS[CANTIDAD])","v":1},18000,{"$f":"INVENTARIO[[#This Row],[PRECIO COMPRA]]*2","v":36000},{"$f":"INVENTARIO[[#This Row],[STOCK]]*INVENTARIO[[#This Row],[PRECIO COMPRA]]","v":882000}]
[9,"ROPA","CABALLERO","JEANS",{"$f":"+INVENTARIO[[#This Row],[ENTRADAS]]-INVENTARIO[[#This Row],[SALIDAS]]","v":50},{"$f":"SUMIF(ENTRADAS[CODIGO],INVENTARIO[[#This Row],[CODIGO]],ENTRADAS[CANTIDAD])","v":50},{"$f":"SUMIF(SALIDAS[CODIGO],INVENTARIO[[#This Row],[CODIGO]],SALIDAS[CANTIDAD])","v":0},20000,{"$f":"INVENTARIO[[#This Row],[PRECIO COMPRA]]*2","v":40000},{"$f":"INVENTARIO[[#This Row],[STOCK]]*INVENTARIO[[#This Row],[PRECIO COMPRA]]","v":1000000}]
[8,"ROPA","CABALLERO","CAMISA MANGA LARGA",{"$f":"+INVENTARIO[[#This Row],[ENTRADAS]]-INVENTARIO[[#This Row],[SALIDAS]]","v":30},{"$f":"SUMIF(ENTRADAS[CODIGO],INVENTARIO[[#This Row],[CODIGO]],ENTRADAS[CANTIDAD])","v":50},{"$f":"SUMIF(SALIDAS[CODIGO],INVENTARIO[[#This Row],[CODIGO]],SALIDAS[CANTIDAD])","v":20},22000,{"$f":"INVENTARIO[[#This Row],[PRECIO COMPRA]]*2","v":44000},{"$f":"INVENTARIO[[#This Row],[STOCK]]*INVENTARIO[[#This Row],[PRECIO COMPRA]]","v":660000}]
[7,"ROPA","CABALLERO","CHAQUETA",{"$f":"+INVENTARIO[[#This Row],[ENTRADAS]]-INVENTARIO[[#This Row],[SALIDAS]]","v":50},{"$f":"SUMIF(ENTRADAS[CODIGO],INVENTARIO[[#This Row],[CODIGO]],ENTRADAS[CANTIDAD])","v":50},{"$f":"SUMIF(SALIDAS[CODIGO],INVENTARIO[[#This Row],[CODIGO]],SALIDAS[CANTIDAD])","v":0},24000,{"$f":"INVENTARIO[[#This Row],[PRECIO COMPRA]]*2","v":48000},{"$f":"INVENTARIO[[#This Row],[STOCK]]*INVENTARIO[[#This Row],[PRECIO COMPRA]]","v":1200000}]
[6,"LICORES","NACIONALES","AGUARDIENTE",{"$f":"+INVENTARIO[[#This Row],[ENTRADAS]]-INVENTARIO[[#This Row],[SALIDAS]]","v":10},{"$f":"SUMIF(ENTRADAS[CODIGO],INVENTARIO[[#This Row],[CODIGO]],ENTRADAS[CANTIDAD])","v":50},{"$f":"SUMIF(SALIDAS[CODIGO],INVENTARIO[[#This Row],[CODIGO]],SALIDAS[CANTIDAD])","v":40},26000,{"$f":"INVENTARIO[[#This Row],[PRECIO COMPRA]]*2","v":52000},{"$f":"INVENTARIO[[#This Row],[STOCK]]*INVENTARIO[[#This Row],[PRECIO COMPRA]]","v":260000}]
[5,"LICORES","NACIONALES","RON",{"$f":"+INVENTARIO[[#This Row],[ENTRADAS]]-INVENTARIO[[#This Row],[SALIDAS]]","v":50},{"$f":"SUMIF(ENTRADAS[CODIGO],INVENTARIO[[#This Row],[CODIGO]],ENTRADAS[CANTIDAD])","v":50},{"$f":"SUMIF(SALIDAS[CODIGO],INVENTARIO[[#This Row],[CODIGO]],SALIDAS[CANTIDAD])","v":0},28000,{"$f":"INVENTARIO[[#This Row],[PRECIO COMPRA]]*2","v":56000},{"$f":"INVENTARIO[[#This Row],[STOCK]]*INVENTARIO[[#This Row],[PRECIO COMPRA]]","v":1400000}]
[4,"LICORES","NACIONALES","CERVEZA",{"$f":"+INVENTARIO[[#This Row],[ENTRADAS]]-INVENTARIO[[#This Row],[SALIDAS]]","v":45},{"$f":"SUMIF(ENTRADAS[CODIGO],INVENTARIO[[#This Row],[CODIGO]],ENTRADAS[CANTIDAD])","v":50},{"$f":"SUMIF(SALIDAS[CODIGO],INVENTARIO[[#This Row],[CODIGO]],SALIDAS[CANTIDAD])","v":5},30000,{"$f":"INVENTARIO[[#This Row],[PRECIO COMPRA]]*2","v":60000},{"$f":"INVENTARIO[[#This Row],[STOCK]]*INVENTARIO[[#This Row],[PRECIO COMPRA]]","v":1350000}]
[3,"LICORES","IMPORTADOS","WHISKY",{"$f":"+INVENTARIO[[#This Row],[ENTRADAS]]-INVENTARIO[[#This Row],[SALIDAS]]","v":48},{"$f":"SUMIF(ENTRADAS[CODIGO],INVENTARIO[[#This Row],[CODIGO]],ENTRADAS[CANTIDAD])","v":50},{"$f":"SUMIF(SALIDAS[CODIGO],INVENTARIO[[#This Row],[CODIGO]],SALIDAS[CANTIDAD])","v":2},32000,{"$f":"INVENTARIO[[#This Row],[PRECIO COMPRA]]*2","v":64000},{"$f":"INVENTARIO[[#This Row],[STOCK]]*INVENTARIO[[#This Row],[PRECIO COMPRA]]","v":1536000}]
[2,"LICORES","IMPORTADOS","TEQUILA",{"$f":"+INVENTARIO[[#This Row],[ENTRADAS]]-INVENTARIO[[#This Row],[SALIDAS]]","v":32},{"$f":"SUMIF(ENTRADAS[CODIGO],INVENTARIO[[#This Row],[CODIGO]],ENTRADAS[CANTIDAD])","v":50},{"$f":"SUMIF(SALIDAS[CODIGO],INVENTARIO[[#This Row],[CODIGO]],SALIDAS[CANTIDAD])","v":18},34000,{"$f":"INVENTARIO[[#This Row],[PRECIO COMPRA]]*2","v":68000},{"$f":"INVENTARIO[[#This Row],[STOCK]]*INVENTARIO[[#This Row],[PRECIO COMPRA]]","v":1088000}]
[1,"LICORES","IMPORTADOS","VINO",{"$f":"+INVENTARIO[[#This Row],[ENTRADAS]]-INVENTARIO[[#This Row],[SALIDAS]]","v":38},{"$f":"SUMIF(ENTRADAS[CODIGO],INVENTARIO[[#This Row],[CODIGO]],ENTRADAS[CANTIDAD])","v":50},{"$f":"SUMIF(SALIDAS[CODIGO],INVENTARIO[[#This Row],[CODIGO]],SALIDAS[CANTIDAD])","v":12},36000,{"$f":"INVENTARIO[[#This Row],[PRECIO COMPRA]]*2","v":72000},{"$f":"INVENTARIO[[#This Row],[STOCK]]*INVENTARIO[[#This Row],[PRECIO COMPRA]]","v":1368000}]
[]
[]
[]
[]
[null,"Visita mi sitio web para más contenido: www.pacho8a.com"]

{"sheet":"ENTRADAS Y SALIDAS","index":1,"n_rows":25,"n_cols":9,"rows_kept":25,"cut":false,"hidden":false,"merged":[[4,0,5,3],[4,5,5,8]]}
[]
[null,null,null,"ESPACIO PARA LOGO DE LA EMPRESA"]
[null,"VOLVER A"]
[null,"INVENTARIO"]
["ENTRADAS",null,null,null,null,"SALIDAS"]
[]
["FECHA","CODIGO","PRODUCTO","CANTIDAD",null,"FECHA","CODIGO","PRODUCTO","CANTIDAD"]
["2017-06-01",1,{"$f":"IFERROR(VLOOKUP(ENTRADAS[CODIGO],INVENTARIO[],4,FALSE),\" \")","v":"VINO"},50,null,"2017-06-01",2,{"$f":"IFERROR(VLOOKUP(SALIDAS[CODIGO],INVENTARIO[],4,FALSE),\" \")","v":"TEQUILA"},5]
["2017-06-02",2,{"$f":"IFERROR(VLOOKUP(ENTRADAS[CODIGO],INVENTARIO[],4,FALSE),\" \")","v":"TEQUILA"},50,null,"2017-06-02",4,{"$f":"IFERROR(VLOOKUP(SALIDAS[CODIGO],INVENTARIO[],4,FALSE),\" \")","v":"CERVEZA"},5]
["2017-06-03",3,{"$f":"IFERROR(VLOOKUP(ENTRADAS[CODIGO],INVENTARIO[],4,FALSE),\" \")","v":"WHISKY"},50,null,"2017-06-03",6,{"$f":"IFERROR(VLOOKUP(SALIDAS[CODIGO],INVENTARIO[],4,FALSE),\" \")","v":"AGUARDIENTE"},40]
["2017-06-04",4,{"$f":"IFERROR(VLOOKUP(ENTRADAS[CODIGO],INVENTARIO[],4,FALSE),\" \")","v":"CERVEZA"},50,null,"2017-06-04",8,{"$f":"IFERROR(VLOOKUP(SALIDAS[CODIGO],INVENTARIO[],4,FALSE),\" \")","v":"CAMISA MANGA LARGA"},20]
["2017-06-05",5,{"$f":"IFERROR(VLOOKUP(ENTRADAS[CODIGO],INVENTARIO[],4,FALSE),\" \")","v":"RON"},50,null,"2017-06-05",10,{"$f":"IFERROR(VLOOKUP(SALIDAS[CODIGO],INVENTARIO[],4,FALSE),\" \")","v":"ZAPATOS"},1]
["2017-06-06",6,{"$f":"IFERROR(VLOOKUP(ENTRADAS[CODIGO],INVENTARIO[],4,FALSE),\" \")","v":"AGUARDIENTE"},50,null,"2017-06-06",12,{"$f":"IFERROR(VLOOKUP(SALIDAS[CODIGO],INVENTARIO[],4,FALSE),\" \")","v":"BLUSA ALGODÓN"},3]
["2017-06-07",7,{"$f":"IFERROR(VLOOKUP(ENTRADAS[CODIGO],INVENTARIO[],4,FALSE),\" \")","v":"CHAQUETA"},50,null,"2017-06-07",14,{"$f":"IFERROR(VLOOKUP(SALIDAS[CODIGO],INVENTARIO[],4,FALSE),\" \")","v":"PISTA DE CARROS"},7]
["2017-06-08",8,{"$f":"IFERROR(VLOOKUP(ENTRADAS[CODIGO],INVENTARIO[],4,FALSE),\" \")","v":"CAMISA MANGA LARGA"},50,null,"2017-06-08",16,{"$f":"IFERROR(VLOOKUP(SALIDAS[CODIGO],INVENTARIO[],4,FALSE),\" \")","v":"KIT DE COCINA"},8]
["2017-06-09",9,{"$f":"IFERROR(VLOOKUP(ENTRADAS[CODIGO],INVENTARIO[],4,FALSE),\" \")","v":"JEANS"},50,null,"2017-06-09",18,{"$f":"IFERROR(VLOOKUP(SALIDAS[CODIGO],INVENTARIO[],4,FALSE),\" \")","v":"MUÑECA BARBIE"},9]
["2017-06-10",10,{"$f":"IFERROR(VLOOKUP(ENTRADAS[CODIGO],INVENTARIO[],4,FALSE),\" \")","v":"ZAPATOS"},50,null,"2017-06-10",1,{"$f":"IFERROR(VLOOKUP(SALIDAS[CODIGO],INVENTARIO[],4,FALSE),\" \")","v":"VINO"},12]
["2017-06-11",11,{"$f":"IFERROR(VLOOKUP(ENTRADAS[CODIGO],INVENTARIO[],4,FALSE),\" \")","v":"SWEATER DE LANA"},50,null,"2017-06-11",2,{"$f":"IFERROR(VLOOKUP(SALIDAS[CODIGO],INVENTARIO[],4,FALSE),\" \")","v":"TEQUILA"},13]
["2017-06-12",12,{"$f":"IFERROR(VLOOKUP(ENTRADAS[CODIGO],INVENTARIO[],4,FALSE),\" \")","v":"BLUSA ALGODÓN"},50,null,"2017-06-12",3,{"$f":"IFERROR(VLOOKUP(SALIDAS[CODIGO],INVENTARIO[],4,FALSE),\" \")","v":"WHISKY"},2]
["2017-06-13",13,{"$f":"IFERROR(VLOOKUP(ENTRADAS[CODIGO],INVENTARIO[],4,FALSE),\" \")","v":"LEGO"},50]
["2017-06-14",14,{"$f":"IFERROR(VLOOKUP(ENTRADAS[CODIGO],INVENTARIO[],4,FALSE),\" \")","v":"PISTA DE CARROS"},50]
["2017-06-15",15,{"$f":"IFERROR(VLOOKUP(ENTRADAS[CODIGO],INVENTARIO[],4,FALSE),\" \")","v":"CARRO A CONTROL"},50]
["2017-06-16",16,{"$f":"IFERROR(VLOOKUP(ENTRADAS[CODIGO],INVENTARIO[],4,FALSE),\" \")","v":"KIT DE COCINA"},50]
["2017-06-17",17,{"$f":"IFERROR(VLOOKUP(ENTRADAS[CODIGO],INVENTARIO[],4,FALSE),\" \")","v":"COCHE DE BEBÉ"},50]
["2017-06-18",18,{"$f":"IFERROR(VLOOKUP(ENTRADAS[CODIGO],INVENTARIO[],4,FALSE),\" \")","v":"MUÑECA BARBIE"},50]

{"sheet":"CONSULTA ARTICULOS","index":2,"n_rows":10,"n_cols":1,"rows_kept":10,"cut":false,"hidden":false,"merged":[[0,0,1,1]]}
["CONSULTA POR ARTÍCULO"]
[]
["CATEGORÍA"]
["SUBCATEGORÍA"]
["ARTÍCULO"]
["CANTIDAD EN STOCK"]
["UNIDADES VENDIDAS"]
["PRECIO DE COMPRA"]
["PRECIO DE VENTA"]
["OBSERVACIONES"]